[Event "11th LCC FIDE Open 2019"]
[Site "London"]
[Date "2019.12.05"]
[Round "8.4"]
[White "Song, Raymond"]
[Black "Vaishali R"]
[Result "1/2-1/2"]
[ECO "C54"]
[WhiteElo "2468"]
[BlackElo "2376"]
[Annotator "ChessBase"]
[PlyCount "170"]
[EventDate "2019.11.29"]
[EventType "swiss"]
[EventCountry "ENG"]
[SourceTitle "playchess.com"]
[Source "ChessBase"]
[SourceQuality "1"]
[TimeControl "40/5400+30:1800+30"]

1. e4 {[%emt 0:00:00]} e5 {[%emt 0:00:40]} 2. Nf3 {[%emt 0:00:00]} Nc6 {[%emt 0:00:03]} 3. Bc4 {[%emt 0:00:00]} Nf6 {[%emt 0:00:05]} 4. d3 {[%emt 0:00:00]} Bc5 {[%emt 0:00:14]} 5. O-O {[%emt 0:00:00]} d6 {[%emt 0:00:26]} 6. c3 {[%emt 0:00:04]} h6 {[%emt 0:00:43]} 7. Re1 {[%emt 0:00:42]} a6 {[%emt 0:00:27]} 8. a4 {[%emt 0:02:56]} Ba7 {[%emt 0:01:07]} 9. Na3 {[%emt 0:01:21]} O-O {[%emt 0:03:01]} 10. h3 {[%emt 0:00:30]} Be6 {[%emt 0:02:54]} 11. b4 {[%emt 0:01:09]} Ne7 {[%emt 0:06:50]} 12. Bxe6 {[%emt 0:02:39]} fxe6 {[%emt 0:00:04]} 13. Nc2 {[%emt 0:00:48]} Ng6 {[%emt 0:02:07]} 14. Be3 {[%emt 0:00:28]} Bxe3 {[%emt 0:01:36]} 15. Nxe3 {[%emt 0:00:04]} Rf7 {[%emt 0:07:45]} 16. g3 {[%emt 0:13:15]} d5 {[%emt 0:08:23]} 17. Nd2 {[%emt 0:07:34]} Qd7 {[%emt 0:05:48]} 18. Nb3 {[%emt 0:03:42]} dxe4 {[%emt 0:18:24]} 19. Nc5 {[%emt 0:00:11]} Qc6 {[%emt 0:00:19]} 20. Ng4 {[%emt 0:00:18]} exd3 {[%emt 0:13:03]} 21. Qxd3 {[%emt 0:04:49]} Nxg4 {[%emt 0:01:34]} 22. hxg4 {[%emt 0:00:02]} Nf8 {[%emt 0:00:37]} 23. g5 {[%emt 0:16:16]} hxg5 {[%emt 0:02:08]} 24. Rxe5 {[%emt 0:01:09]} b6 {[%emt 0:02:08]} 25. Ne4 {[%emt 0:01:37]} g4 {[%emt 0:01:52]} 26. Ng5 {[%emt 0:00:35]} Rd7 {[%emt 0:03:08]} 27. Qe4 {[%emt 0:01:13]} Qxc3 {[%emt 0:03:55]} 28. Re1 {[%emt 0:00:42]} Rad8 {[%emt 0:00:24]} 29. Qf4 {[%emt 0:11:17]} Ng6 {[%emt 0:01:21]} 30. Qxg4 {[%emt 0:00:06]} Qxe5 {[%emt 0:05:49]} 31. Rxe5 {[%emt 0:00:04]} Nxe5 {[%emt 0:00:05]} 32. Qxe6+ {[%emt 0:00:04]} Nf7 {[%emt 0:00:04]} 33. Nf3 {[%emt 0:00:20]} Rd6 {[%emt 0:03:02]} 34. Qc4 {[%emt 0:00:21]} Rf6 {[%emt 0:00:45]} 35. Kg2 {[%emt 0:00:49]} c5 {[%emt 0:02:32]} 36. bxc5 {[%emt 0:00:52]} bxc5 {[%emt 0:00:45]} 37. Qxc5 {[%emt 0:00:08]} Rd3 {[%emt 0:00:51]} 38. Ng5 {[%emt 0:01:18]} Nxg5 {[%emt 0:02:41]} 39. Qc4+ {[%emt 0:00:36]} Nf7 {[%emt 0:00:04]} 40. Qxd3 {[%emt 0:00:06]} g5 {[%emt 0:00:03]} 41. Qd4 {[%emt 0:30:36]} Rd6 {[%emt 0:30:57]} 42. Qg4 {[%emt 0:00:17]} Kf8 {[%emt 0:01:21]} 43. Qf5 {[%emt 0:00:17]} Kg7 {[%emt 0:00:13]} 44. f4 {[%emt 0:01:30]} gxf4 {[%emt 0:00:43]} 45. gxf4 {[%emt 0:00:05]} Rf6 {[%emt 0:00:00]} 46. Qe4 {[%emt 0:00:00]} Kg8 {[%emt 0:00:00]} 47. Kg3 {[%emt 0:00:00]} Kg7 {[%emt 0:00:00]} 48. Qd4 {[%emt 0:00:00]} Kg6 {[%emt 0:00:00]} 49. Kf3 {[%emt 0:00:00]} Rd6 {[%emt 0:00:00]} 50. Qb2 {[%emt 0:00:00]} Rd3+ {[%emt 0:00:00]} 51. Ke4 {[%emt 0:00:00]} Rd6 {[%emt 0:00:00]} 52. f5+ {[%emt 0:00:00]} Kh7 {[%emt 0:00:00]} 53. Kf4 {[%emt 0:00:00]} Rh6 {[%emt 0:00:00]} 54. f6 {[%emt 0:00:00]} Kg6 {[%emt 0:00:00]} 55. Kg4 {[%emt 0:00:00]} a5 {[%emt 0:00:00]} 56. Qb5 {[%emt 0:00:00]} Kxf6 {[%emt 0:00:00]} 57. Qxa5 {[%emt 0:00:00]} Ne5+ {[%emt 0:00:00]} 58. Kg3 {[%emt 0:00:00]} Rg6+ {[%emt 0:00:00]} 59. Kf2 {[%emt 0:00:00]} Ke6 {[%emt 0:00:00]} 60. Qb6+ {[%emt 0:00:00]} Kd7 {[%emt 0:02:12]} 61. Qb7+ {[%emt 0:00:00]} Kd6 {[%emt 0:00:11]} 62. a5 {[%emt 0:00:00]} Rf6+ {[%emt 0:00:37]} 63. Ke2 {[%emt 0:00:00]} Nc6 {[%emt 0:01:04]} 64. a6 {[%emt 0:00:00]} Re6+ {[%emt 0:00:12]} 65. Kd2 {[%emt 0:00:00]} Re7 {[%emt 0:00:19]} 66. Qb6 {[%emt 0:00:00]} Rc7 {[%emt 0:02:04]} 67. Kc3 {[%emt 0:00:00]} Kd7 {[%emt 0:00:13]} 68. Kd3 {[%emt 0:00:00]} Kc8 {[%emt 0:00:34]} 69. Ke4 {[%emt 0:00:00]} Re7+ {[%emt 0:01:01]} 70. Kd5 {[%emt 0:00:00]} Rd7+ {[%emt 0:00:18]} 71. Kc5 {[%emt 0:00:00]} Rc7 {[%emt 0:00:18]} 72. Qb2 {[%emt 0:00:00]} Na7+ {[%emt 0:02:11]} 73. Kb6 {[%emt 0:00:00]} Kb8 {[%emt 0:00:36]} 74. Qh2 {[%emt 0:00:00]} Nc8+ {[%emt 0:00:05]} 75. Ka5 {[%emt 0:00:00]} Na7 {[%emt 0:00:18]} 76. Qb2+ {[%emt 0:00:00]} Ka8 {[%emt 0:00:15]} 77. Qb6 {[%emt 0:00:00]} Rd7 {[%emt 0:01:15]} 78. Ka4 {[%emt 0:00:00]} Nc8 {[%emt 0:00:19]} 79. Qc6+ {[%emt 0:00:00]} Kb8 {[%emt 0:00:01]} 80. Qh1 {[%emt 0:00:00]} Ka7 {[%emt 0:02:05]} 81. Qh6 {[%emt 0:13:13]} Rd6 {[%emt 0:00:57]} 82. Qf8 {[%emt 0:01:09]} Rxa6+ {[%emt 0:00:16]} 83. Kb4 {[%emt 0:00:19]} Rb6+ {[%emt 0:00:04]} 84. Kc5 {[%emt 0:00:06]} Kb8 {[%emt 0:00:05]} 85. Qe8 {[%emt 0:01:12]} Kb7 {[%emt 0:00:07]} 1/2-1/2

[Event "11th LCC FIDE Open 2019"]
[Site "London"]
[Date "2019.12.05"]
[Round "8.5"]
[White "Maze, Sebastien"]
[Black "Flear, Glenn C"]
[Result "1-0"]
[ECO "C77"]
[WhiteElo "2541"]
[BlackElo "2463"]
[Annotator "RC"]
[PlyCount "99"]
[EventDate "2019.11.29"]
[EventType "swiss"]
[EventCountry "ENG"]
[SourceTitle "playchess.com"]
[Source "ChessBase"]
[SourceQuality "1"]
[TimeControl "40/5400+30:1800+30"]

1. e4 {[%emt 0:03:05]} e5 {[%emt 0:00:00]} 2. Nf3 {[%emt 0:00:03]} Nc6 {[%emt 0:00:00]} 3. Bb5 {[%emt 0:00:03]} a6 {[%emt 0:00:00]} 4. Ba4 {[%emt 0:00:03]} Nf6 {[%emt 0:00:12]} 5. Nc3 {[%emt 0:00:02]} b5 {[%emt 0:00:38]} 6. Bb3 {[%emt 0:00:04]} Be7 {[%emt 0:00:19]} 7. a4 {[%emt 0:00:11]} b4 {[%emt 0:03:32]} 8. Nd5 {[%emt 0:00:07]} Na5 {[%emt 0:06:30]} 9. Ba2 {[%emt 0:00:06]} Nxd5 {[%emt 0:02:12]} 10. Bxd5 {[%emt 0:00:06]} c6 {[%emt 0:00:47]} 11. Ba2 {[%emt 0:00:04]} d6 {[%emt 0:01:47]} 12. d4 {[%emt 0:00:03]} Qc7 {[%emt 0:03:31]} 13. Be3 {[%emt 0:16:14]} O-O {[%emt 0:04:37]} 14. dxe5 dxe5 {[%emt 0:00:08]} 15. Nd2 {[%emt 0:00:06]} Nb7 {[%emt 0:08:34]} 16. Qe2 {[%emt 0:07:16]} Bc5 {[%emt 0:03:02]} 17. Bc4 {[%emt 0:05:42]} a5 {[%emt 0:13:36]} 18. Nb3 {[%emt 0:02:32]} Bxe3 {[%emt 0:08:51]} 19. Qxe3 {[%emt 0:00:03]} Nd6 {[%emt 0:00:18]} 20. Be2 {[%emt 0:00:05]} f5 {[%emt 0:16:06]} 21. exf5 {[%emt 0:00:05]} Bxf5 {[%emt 0:00:51]} 22. O-O-O {[%emt 0:10:04]} Be6 {[%emt 0:05:00]} 23. Qxe5 {[%emt 0:04:51]} Bd5 {[%emt 0:03:14]} 24. Bf3 {[%emt 0:00:05]} Bxf3 {[%emt 0:05:21]} 25. gxf3 {[%emt 0:00:33]} Ne8 {[%emt 0:01:36]} 26. Qxc7 {[%emt 0:02:54]} Nxc7 {[%emt 0:00:20]} 27. Rd6 {[%emt 0:01:19]} Rxf3 {[%emt 0:01:20]} 28. Rxc6 {[%emt 0:00:05]} Nd5 {[%emt 0:00:22]} 29. Rd1 {[%emt 0:07:57]} Nf6 {[%emt 0:01:05]} 30. Rc5 {[%emt 0:01:17]} Rxf2 {[%emt 0:00:40]} 31. Rxa5 {[%emt 0:00:04]} Re8 {[%emt 0:00:53]} 32. h4 {[%emt 0:06:22]} Rh2 {[%emt 0:00:27]} 33. Rb5 {[%emt 0:00:11]} Rxh4 {[%emt 0:00:28]} 34. a5 {[%emt 0:00:03]} Ra8 {[%emt 0:01:26]} 35. Nc5 {[%emt 0:01:07]} h5 {[%emt 0:00:41]} 36. a6 {[%emt 0:07:37]} Rg4 {[%emt 0:01:12]} 37. Rb7 {[%emt 0:01:17]} Rc4 {[%emt 0:04:17]} 38. Ne6 {[%emt 0:01:00]} Rc6 {[%emt 0:00:45]} 39. Nc7 {[%emt 0:08:33]} Rxc7 {[%emt 0:00:15]} 40. Rxc7 {[%emt 0:00:04]} Rxa6 {[%emt 0:00:05]} 41. Rd4 {[%emt 0:30:16]} Kh7 {[%emt 0:30:39]} 42. c4 {[%emt 0:13:20]} bxc3 {[%emt 0:03:05]} 43. b4 {[%emt 0:00:04]} Rb6 {[%emt 0:00:00]} 44. Rc5 {[%emt 0:00:00]} g6 {[%emt 0:00:00]} 45. b5 {[%emt 0:00:00]} Ng4 {[%emt 0:00:00]} 46. Rb4 {[%emt 0:00:00]} Kh6 {[%emt 0:00:00]} 47. Rc6 {[%emt 0:00:00]} Rb7 {[%emt 0:00:00]} 48. b6 {[%emt 0:00:00]} Ne5 {[%emt 0:00:00]} 49. Rxc3 {[%emt 0:00:00]} Nd7 {[%emt 0:00:00]} 50. Rc6 {[%emt 0:08:08]} 1-0

[Event "11th LCC FIDE Open 2019"]
[Site "London"]
[Date "2019.12.05"]
[Round "8.7"]
[White "Grover, Sahaj"]
[Black "Wu, Li"]
[Result "1-0"]
[ECO "D41"]
[WhiteElo "2508"]
[BlackElo "2293"]
[Annotator "ChessBase"]
[PlyCount "55"]
[EventDate "2019.11.29"]
[EventType "swiss"]
[EventCountry "ENG"]
[SourceTitle "playchess.com"]
[Source "ChessBase"]
[SourceQuality "1"]
[TimeControl "40/5400+30:1800+30"]

1. d4 {[%emt 0:00:00]} Nf6 {[%emt 0:00:00]} 2. c4 {[%emt 0:00:00]} e6 {[%emt 0:01:31]} 3. Nc3 {[%emt 0:00:00]} d5 {[%emt 0:00:44]} 4. cxd5 {[%emt 0:00:01]} Nxd5 {[%emt 0:00:57]} 5. Nf3 {[%emt 0:00:35]} c5 {[%emt 0:00:11]} 6. e3 {[%emt 0:00:16]} cxd4 {[%emt 0:01:53]} 7. exd4 {[%emt 0:00:07]} Nxc3 {[%emt 0:00:44]} 8. bxc3 {[%emt 0:00:06]} Qc7 {[%emt 0:00:18]} 9. Bd2 {[%emt 0:00:32]} Nd7 {[%emt 0:02:19]} 10. Bd3 {[%emt 0:01:41]} Bd6 {[%emt 0:10:36]} 11. O-O {[%emt 0:03:45]} h6 {[%emt 0:02:34]} 12. Re1 {[%emt 0:05:57]} b6 {[%emt 0:08:38]} 13. d5 {[%emt 0:23:01]} e5 {[%emt 0:19:07]} 14. Nd4 {[%emt 0:01:33]} Nc5 {[%emt 0:05:31]} 15. Nb5 {[%emt 0:00:22]} Qb8 {[%emt 0:01:06]} 16. Bc2 {[%emt 0:13:20]} O-O {[%emt 0:15:23]} 17. Qh5 {[%emt 0:00:08]} e4 {[%emt 0:00:04]} 18. Bxe4 {[%emt 0:00:48]} Bf4 {[%emt 0:02:55]} 19. Bxf4 {[%emt 0:05:22]} Qxf4 {[%emt 0:00:04]} 20. Qf3 {[%emt 0:00:07]} Qxf3 {[%emt 0:06:48]} 21. Bxf3 {[%emt 0:00:27]} Ba6 {[%emt 0:02:06]} 22. Nc7 {[%emt 0:00:48]} Rac8 {[%emt 0:01:38]} 23. Nxa6 {[%emt 0:03:12]} Nxa6 {[%emt 0:00:04]} 24. Re7 {[%emt 0:00:05]} Rc7 {[%emt 0:03:47]} 25. Rae1 {[%emt 0:00:46]} Rd8 {[%emt 0:01:40]} 26. h4 {[%emt 0:00:51]} Kf8 {[%emt 0:00:36]} 27. d6 {[%emt 0:00:14]} Rxc3 {[%emt 0:01:10]} 28. Bd5 {[%emt 0:00:06]} 1-0

[Event "11th LCC FIDE Open 2019"]
[Site "London"]
[Date "2019.12.05"]
[Round "8.8"]
[White "Petrov, Martin"]
[Black "Royal, Shreyas"]
[Result "1-0"]
[ECO "C50"]
[WhiteElo "2497"]
[BlackElo "1941"]
[Annotator "ChessBase"]
[PlyCount "67"]
[EventDate "2019.11.29"]
[EventType "swiss"]
[EventCountry "ENG"]
[SourceTitle "playchess.com"]
[Source "ChessBase"]
[SourceQuality "1"]
[TimeControl "40/5400+30:1800+30"]

1. e4 {[%emt 0:00:00]} e5 {[%emt 0:00:18]} 2. Nf3 {[%emt 0:00:00]} Nc6 {[%emt 0:00:40]} 3. Bc4 {[%emt 0:00:00]} Bc5 {[%emt 0:00:50]} 4. O-O {[%emt 0:00:06]} Nf6 {[%emt 0:00:48]} 5. d3 {[%emt 0:00:06]} O-O {[%emt 0:01:20]} 6. Re1 {[%emt 0:00:02]} Ng4 {[%emt 0:07:23]} 7. Re2 {[%emt 0:04:03]} Kh8 {[%emt 0:02:37]} 8. h3 {[%emt 0:13:55]} f5 9. exf5 {[%emt 0:11:42]} d5 {[%emt 0:08:33]} 10. hxg4 {[%emt 0:00:00]} dxc4 {[%emt 0:00:31]} 11. Nc3 {[%emt 0:00:00]} h5 {[%emt 0:14:13]} 12. Bg5 {[%emt 0:01:02]} Be7 {[%emt 0:03:52]} 13. Bxe7 {[%emt 0:00:44]} Qxe7 {[%emt 0:00:06]} 14. d4 {[%emt 0:17:22]} hxg4 {[%emt 0:06:09]} 15. Nxe5 {[%emt 0:00:03]} Nxe5 {[%emt 0:00:45]} 16. Rxe5 {[%emt 0:00:03]} Qh4 {[%emt 0:04:54]} 17. g3 {[%emt 0:01:46]} Qh3 {[%emt 0:02:21]} 18. f6 {[%emt 0:07:55]} Rxf6 {[%emt 0:10:47]} 19. Re8+ {[%emt 0:00:05]} Kh7 {[%emt 0:00:04]} 20. Qf1 {[%emt 0:11:03]} Qxf1+ {[%emt 0:00:41]} 21. Kxf1 {[%emt 0:01:30]} b6 {[%emt 0:01:59]} 22. Rae1 {[%emt 0:02:56]} Bb7 {[%emt 0:00:54]} 23. Rxa8 {[%emt 0:09:37]} Bxa8 {[%emt 0:00:04]} 24. Re7 {[%emt 0:01:07]} Bf3 {[%emt 0:01:31]} 25. Rxc7 {[%emt 0:01:01]} Rh6 {[%emt 0:00:02]} 26. Ke1 {[%emt 0:01:15]} Rh1+ {[%emt 0:00:09]} 27. Kd2 {[%emt 0:00:03]} Rf1 {[%emt 0:00:13]} 28. d5 {[%emt 0:00:31]} Rxf2+ {[%emt 0:00:36]} 29. Ke3 {[%emt 0:00:22]} Rf1 {[%emt 0:02:54]} 30. d6 {[%emt 0:00:07]} Re1+ {[%emt 0:00:03]} 31. Kd4 {[%emt 0:00:35]} Re8 {[%emt 0:01:43]} 32. d7 {[%emt 0:00:22]} Rd8 {[%emt 0:00:01]} 33. Ke5 {[%emt 0:00:46]} Kg8 {[%emt 0:00:29]} 34. Rc8 {[%emt 0:00:10]} 1-0

[Event "11th LCC FIDE Open 2019"]
[Site "London"]
[Date "2019.12.05"]
[Round "8.11"]
[White "Sowray, Peter J"]
[Black "Merry, Alan B"]
[Result "0-1"]
[ECO "E46"]
[WhiteElo "2316"]
[BlackElo "2426"]
[Annotator "NA RC"]
[PlyCount "70"]
[EventDate "2019.11.29"]
[EventType "swiss"]
[EventCountry "ENG"]
[SourceTitle "playchess.com"]
[Source "ChessBase"]
[SourceQuality "1"]
[TimeControl "40/5400+30:1800+30"]

1. d4 {[%emt 0:00:00]} Nf6 {[%emt 0:00:00]} 2. c4 {[%emt 0:00:00]} e6 {[%emt 0:00:00]} 3. Nc3 {[%emt 0:00:05]} Bb4 {[%emt 0:00:00]} 4. e3 {[%emt 0:00:30]} O-O {[%emt 0:00:00]} 5. Nge2 {[%emt 0:00:07]} Re8 {[%emt 0:00:00]} 6. a3 {[%emt 0:01:55]} Bf8 {[%emt 0:00:00]} 7. Ng3 {[%emt 0:00:05]} d5 {[%emt 0:00:05]} 8. Be2 {[%emt 0:03:32]} b6 {[%emt 0:00:05]} 9. O-O {[%emt 0:01:14]} Bb7 {[%emt 0:00:02]} 10. b4 {[%emt 0:04:43]} c6 {[%emt 0:00:53]} 11. Bb2 {[%emt 0:03:51]} Nbd7 {[%emt 0:01:03]} 12. Qb3 {[%emt 0:08:07]} a5 {[%emt 0:05:41]} 13. e4 {[%emt 0:12:55]} Nxe4 {[%emt 0:14:45]} 14. Ncxe4 {[%emt 0:02:02]} dxe4 {[%emt 0:00:11]} 15. bxa5 {[%emt 0:00:50]} Rxa5 {[%emt 0:02:03]} 16. Nxe4 {[%emt 0:01:03]} c5 {[%emt 0:06:32]} 17. Qe3 {[%emt 0:05:17]} Qa8 {[%emt 0:06:55]} 18. Bf3 {[%emt 0:00:46]} cxd4 {[%emt 0:10:19]} 19. Bxd4 {[%emt 0:08:38]} Ne5 {[%emt 0:07:49]} 20. Bxb6 {[%emt 0:06:55]} Nxc4 {[%emt 0:11:17]} 21. Qd4 {[%emt 0:01:18]} Ra4 {[%emt 0:07:26]} 22. Nc3 {[%emt 0:07:43]} Bxf3 {[%emt 0:06:22]} 23. Nxa4 {[%emt 0:01:54]} Bd5 {[%emt 0:05:07]} 24. Nc3 {[%emt 0:16:25]} Nxb6 {[%emt 0:00:06]} 25. Qxb6 {[%emt 0:00:03]} Bxg2 {[%emt 0:00:09]} 26. Rfb1 {[%emt 0:02:22]} Bh1 {[%emt 0:01:50]} 27. Kf1 {[%emt 0:02:01]} h5 {[%emt 0:07:21]} 28. Qe3 {[%emt 0:01:45]} Rd8 {[%emt 0:00:55]} 29. Ke2 {[%emt 0:01:27]} Bf3+ {[%emt 0:02:31]} 30. Kf1 {[%emt 0:01:00]} Qa6+ {[%emt 0:03:17]} 31. Nb5 {[%emt 0:00:51]} Qc6 {[%emt 0:01:00]} 32. Rb3 {[%emt 0:03:14]} Bd1 {[%emt 0:01:00]} 33. Kg1 {[%emt 0:01:50]} Bxb3 {[%emt 0:00:34]} 34. Nd4 {[%emt 0:01:03]} Qc4 {[%emt 0:00:54]} 35. Nxb3 {[%emt 0:00:14]} Rd3 {[%emt 0:00:05]} 0-1

[Event "11th LCC FIDE Open 2019"]
[Site "London"]
[Date "2019.12.05"]
[Round "8.12"]
[White "Fodor, Tamas Jr."]
[Black "Blackburn, Jonathan L B"]
[Result "1-0"]
[ECO "A48"]
[WhiteElo "2533"]
[BlackElo "2240"]
[Annotator "ChessBase"]
[PlyCount "55"]
[EventDate "2019.11.29"]
[EventType "swiss"]
[EventCountry "ENG"]
[SourceTitle "playchess.com"]
[Source "ChessBase"]
[SourceQuality "1"]
[TimeControl "40/5400+30:1800+30"]

1. d4 {[%emt 0:00:00]} d6 {[%emt 0:00:01]} 2. Nf3 {[%emt 0:00:00]} Nf6 {[%emt 0:00:12]} 3. Bf4 {[%emt 0:00:15]} g6 {[%emt 0:00:56]} 4. h3 {[%emt 0:00:14]} Bg7 {[%emt 0:00:18]} 5. c3 {[%emt 0:00:07]} O-O {[%emt 0:01:00]} 6. e3 {[%emt 0:00:06]} c5 {[%emt 0:02:24]} 7. Nbd2 {[%emt 0:02:43]} Be6 {[%emt 0:09:18]} 8. Be2 {[%emt 0:00:33]} Qb6 {[%emt 0:00:33]} 9. Qc1 {[%emt 0:06:25]} Nc6 {[%emt 0:03:28]} 10. dxc5 {[%emt 0:02:31]} Qxc5 {[%emt 0:01:52]} 11. e4 {[%emt 0:00:09]} d5 {[%emt 0:06:22]} 12. Ng5 {[%emt 0:08:04]} Nxe4 {[%emt 0:22:12]} 13. Ndxe4 {[%emt 0:02:54]} dxe4 {[%emt 0:00:05]} 14. Nxe6 {[%emt 0:00:50]} fxe6 {[%emt 0:00:04]} 15. Be3 {[%emt 0:00:54]} Qd5 {[%emt 0:08:28]} 16. O-O {[%emt 0:01:50]} Ne5 {[%emt 0:01:48]} 17. Rd1 {[%emt 0:06:09]} Qc6 {[%emt 0:02:39]} 18. Qc2 {[%emt 0:00:31]} Nc4 {[%emt 0:01:36]} 19. Bxc4 {[%emt 0:03:40]} Qxc4 {[%emt 0:00:04]} 20. Rd7 {[%emt 0:00:09]} Rad8 {[%emt 0:06:28]} 21. Rxb7 {[%emt 0:01:02]} Rd3 {[%emt 0:01:12]} 22. Qb3 {[%emt 0:00:40]} Qc6 {[%emt 0:06:06]} 23. Rxe7 {[%emt 0:00:10]} Rd6 {[%emt 0:03:02]} 24. Rxa7 {[%emt 0:02:58]} Rfd8 {[%emt 0:00:50]} 25. g3 {[%emt 0:00:28]} Be5 {[%emt 0:00:42]} 26. Qb7 {[%emt 0:00:18]} Qxb7 {[%emt 0:00:02]} 27. Rxb7 {[%emt 0:00:07]} Rd3 {[%emt 0:00:05]} 28. Re1 {[%emt 0:00:50]} 1-0

[Event "11th LCC FIDE Open 2019"]
[Site "London"]
[Date "2019.12.05"]
[Round "8.13"]
[White "Hebden, Mark L"]
[Black "Hill, Alistair"]
[Result "1-0"]
[ECO "D00"]
[WhiteElo "2436"]
[BlackElo "2193"]
[Annotator "NA"]
[PlyCount "61"]
[EventDate "2019.11.29"]
[EventType "swiss"]
[EventCountry "ENG"]
[SourceTitle "playchess.com"]
[Source "ChessBase"]
[SourceQuality "1"]
[TimeControl "40/5400+30:1800+30"]

1. d4 {[%emt 0:00:00]} Nf6 {[%emt 0:15:44]} 2. Nc3 {[%emt 0:00:00]} d5 {[%emt 0:00:12]} 3. Bf4 {[%emt 0:00:00]} Bf5 {[%emt 0:00:26]} 4. e3 {[%emt 0:00:29]} e6 {[%emt 0:00:34]} 5. a3 {[%emt 0:01:42]} a6 {[%emt 0:00:57]} 6. Nf3 {[%emt 0:02:12]} c5 {[%emt 0:00:24]} 7. Ne5 {[%emt 0:00:38]} h6 {[%emt 0:03:20]} 8. g4 {[%emt 0:01:59]} Bh7 {[%emt 0:00:35]} 9. h4 {[%emt 0:01:00]} Nfd7 {[%emt 0:07:22]} 10. Bd3 {[%emt 0:12:44]} Nxe5 {[%emt 0:04:19]} 11. dxe5 {[%emt 0:01:53]} Bxd3 {[%emt 0:04:38]} 12. Qxd3 {[%emt 0:04:18]} Be7 {[%emt 0:00:03]} 13. h5 {[%emt 0:01:30]} Nc6 {[%emt 0:00:12]} 14. Bg3 {[%emt 0:07:12]} b5 {[%emt 0:06:06]} 15. Ne2 {[%emt 0:01:08]} Qb6 {[%emt 0:04:45]} 16. c3 {[%emt 0:01:40]} Rd8 {[%emt 0:02:16]} 17. b4 {[%emt 0:02:08]} Rc8 {[%emt 0:08:06]} 18. O-O {[%emt 0:04:16]} O-O {[%emt 0:04:05]} 19. f4 {[%emt 0:04:19]} f5 {[%emt 0:08:50]} 20. exf6 {[%emt 0:06:09]} Bxf6 {[%emt 0:00:15]} 21. Bf2 {[%emt 0:01:33]} cxb4 {[%emt 0:08:09]} 22. axb4 {[%emt 0:01:18]} Nxb4 {[%emt 0:00:39]} 23. cxb4 {[%emt 0:00:50]} Bxa1 {[%emt 0:00:04]} 24. Rxa1 {[%emt 0:00:22]} Rc4 {[%emt 0:01:21]} 25. Rb1 {[%emt 0:03:29]} Qc6 {[%emt 0:01:27]} 26. Nd4 {[%emt 0:02:58]} Qc8 {[%emt 0:01:05]} 27. Nf3 {[%emt 0:04:21]} d4 {[%emt 0:09:13]} 28. Nxd4 {[%emt 0:00:36]} Rd8 {[%emt 0:03:13]} 29. Qe4 {[%emt 0:00:53]} e5 {[%emt 0:02:47]} 30. fxe5 {[%emt 0:00:19]} Rf8 {[%emt 0:00:46]} 31. e6 {[%emt 0:01:59]} 1-0

[Event "11th LCC FIDE Open 2019"]
[Site "London"]
[Date "2019.12.05"]
[Round "8.15"]
[White "Van Zyl-Rudd, Jack"]
[Black "Gschnitzer, Adrian"]
[Result "0-1"]
[ECO "A57"]
[WhiteElo "2290"]
[BlackElo "2422"]
[Annotator "NA"]
[PlyCount "62"]
[EventDate "2019.11.29"]
[EventType "swiss"]
[EventCountry "ENG"]
[SourceTitle "playchess.com"]
[Source "ChessBase"]
[SourceQuality "1"]
[TimeControl "40/5400+30:1800+30"]

1. d4 {[%emt 0:00:00]} Nf6 {[%emt 0:01:29]} 2. c4 {[%emt 0:01:30]} c5 {[%emt 0:00:20]} 3. d5 {[%emt 0:00:09]} b5 {[%emt 0:00:07]} 4. cxb5 {[%emt 0:00:07]} a6 {[%emt 0:00:04]} 5. e3 {[%emt 0:00:06]} g6 {[%emt 0:00:11]} 6. Nc3 {[%emt 0:00:20]} Bg7 {[%emt 0:00:09]} 7. e4 {[%emt 0:00:06]} O-O {[%emt 0:01:54]} 8. a4 {[%emt 0:00:08]} Bb7 {[%emt 0:00:58]} 9. Nf3 {[%emt 0:02:32]} e6 {[%emt 0:02:53]} 10. Be2 {[%emt 0:30:16]} axb5 {[%emt 0:01:50]} 11. Bxb5 {[%emt 0:00:37]} exd5 {[%emt 0:00:17]} 12. exd5 {[%emt 0:00:06]} Qe8+ {[%emt 0:00:12]} 13. Qe2 {[%emt 0:12:41]} Nxd5 {[%emt 0:02:21]} 14. Nxd5 {[%emt 0:00:19]} Bxd5 {[%emt 0:00:15]} 15. Be3 {[%emt 0:00:54]} Nc6 {[%emt 0:14:04]} 16. Bxc5 {[%emt 0:13:13]} Bxb2 {[%emt 0:10:50]} 17. Rd1 {[%emt 0:05:39]} Bb3 {[%emt 0:10:40]} 18. Rb1 {[%emt 0:04:40]} Bxa4 {[%emt 0:01:47]} 19. Bxa4 {[%emt 0:00:50]} Rxa4 {[%emt 0:01:14]} 20. Bxf8 {[%emt 0:01:36]} Re4 {[%emt 0:00:59]} 21. Rxb2 {[%emt 0:00:04]} Kxf8 {[%emt 0:01:20]} 22. Kf1 {[%emt 0:08:26]} Rxe2 {[%emt 0:00:27]} 23. Rxe2 {[%emt 0:00:05]} Qa8 {[%emt 0:00:20]} 24. h4 {[%emt 0:00:52]} Qa6 {[%emt 0:02:43]} 25. Rh3 {[%emt 0:07:03]} h5 {[%emt 0:07:21]} 26. Ke1 {[%emt 0:03:26]} Qa1+ {[%emt 0:01:50]} 27. Kd2 {[%emt 0:00:05]} Nb4 {[%emt 0:01:10]} 28. Ne5 {[%emt 0:04:08]} Qb2+ {[%emt 0:00:38]} 29. Kd1 {[%emt 0:00:07]} Qb1+ {[%emt 0:00:39]} 30. Kd2 {[%emt 0:00:05]} Qc2+ {[%emt 0:00:07]} 31. Ke3 {[%emt 0:00:25]} Nd5+ {[%emt 0:00:20]} 0-1